bitfinex/quotes_ETHUSD_20220106
["timestamp","ask_amount","ask_price","bid_price","bid_amount"]
[1641459981222,5.0,3386.4,3386.2,1.68357389]
[1641459981223,4.9497864,3386.4,3386.2,1.68357389]
[1641459981423,4.9497864,3386.4,3386.2,1.98357389]
[1641459981622,0.00049,3386.3,3386.2,6.87290389]
[1641459981826,15.46615366,3386.7,3386.3,3.05]
[1641459982024,15.46615366,3386.7,3386.4,1.47639]
[1641459982025,5.9058,3386.6,3386.4,1.47639]
[1641459982224,5.9058,3386.6,3385.2,0.351]
[1641459982225,5.9154632,3386.6,3385.2,0.351]
[1641459982626,5.9154632,3386.6,3385.1,0.73854]
[1641459982627,5.9154632,3386.6,3384.7,0.351]
[1641459982823,5.9154632,3386.6,3386.4,0.00171796]
[1641459983104,7.83187432,3386.6,3386.4,0.00171796]
[1641459984104,7.83187432,3386.6,3384.7,0.73863]
[1641459984301,7.83187432,3386.6,3385.1,2.15860092]
[1641459984502,4.81001458,3386.5,3384.5,1.47948369]
[1641459984704,4.81001458,3386.5,3384.5,0.00227369]
[1641459984705,0.01215788,3385.9,3384.5,0.00227369]
[1641459984904,0.01215788,3385.9,3383.8,2.6068]
[1641459984905,0.66355788,3385.9,3384.6,0.00170527]
[1641459985106,0.00511581,3385.8,3384.1,0.00454739]
[1641459985306,5.91091581,3385.8,3384.1,0.00454739]
[1641459985504,0.00454739,3385.7,3384.5,2.21947592]
[1641459985904,5.90977896,3385.6,3384.6,0.00170527]
[1641459986305,0.00341054,3385.5,3385.4,7.85074439]
[1641459986505,0.00341054,3385.5,3385.4,3.11051222]
[1641459986707,0.6917151,3387.1,3386.7,1.02349124]
[1641459986708,1.6917151,3387.1,3386.7,1.02349124]
[1641459986918,1.6917151,3387.1,3385.8,0.3974942]
[1641459987118,0.0073895,3386.8,3385.8,0.6974942]
[1641459987522,0.00682108,3386.7,3385.8,0.3974942]
[1641459987927,0.00625266,3386.6,3385.8,0.3974942]
[1641459988320,0.00568423,3386.5,3385.8,0.3974942]
[1641459988524,1.70033171,3385.9,3384.8,3.5455463]
[1641459988824,0.00170527,3385.8,3384.9,0.00341054]
[1641459989222,1.0,3386.6,3384.9,0.00341054]
[1641459989223,0.00113685,3385.7,3384.9,0.00341054]
[1641459989423,0.00113685,3385.7,3384.3,0.00682108]
[1641459989621,0.351,3385.6,3384.1,0.00795793]
[1641459989823,0.351,3385.6,3383.7,0.01023162]
[1641459990228,0.351,3385.6,3383.5,0.01136847]
[1641459990426,0.351,3385.6,3383.5,0.75027357]
[1641459990668,0.351,3385.6,3384.0,0.01292382]
[1641459990669,3.74353973,3384.3,3384.0,0.01292382]
[1641459990867,1.0,3385.7,3384.0,0.01292382]
[1641459991067,0.35668423,3386.5,3384.1,0.00795793]
[1641459991274,1.35668423,3386.5,3384.1,0.00795793]
[1641459991473,0.00511581,3386.4,3384.1,0.00795793]
[1641459991672,5.908,3386.3,3384.6,2.215861]
[1641459991872,5.91254739,3386.3,3384.6,2.515861]
[1641459992072,0.00397896,3386.2,3385.0,0.73854]
[1641459992474,5.91141054,3386.1,3385.3,3.38265841]
[1641459992678,5.91141054,3386.1,3385.1,0.30227369]
[1641459992679,5.91141054,3386.1,3385.2,2.2154564]
[1641459992876,0.00284212,3386.0,3385.2,2.2154564]
[1641459993080,0.00284212,3386.0,3385.3,0.00113685]
[1641459993278,5.908,3386.1,3385.3,0.00113685]
[1641459993279,0.00227369,3385.9,3385.3,0.00113685]
[1641459993481,0.00227369,3385.9,3385.0,0.00284212]
[1641459993677,0.00170527,3385.8,3385.0,0.00284212]
[1641459993878,5.90970527,3385.8,3385.0,0.00284212]
[1641459994077,0.00113685,3385.7,3385.0,0.00284212]
[1641459994332,5.908,3385.6,3385.0,0.00284212]
[1641459994737,5.908,3385.6,3384.6,0.00511581]
[1641459995138,5.908,3385.6,3384.9,0.7386038]
[1641459995437,5.908,3385.6,3385.0,0.00284212]
[1641459995641,0.351,3385.5,3385.0,0.00284212]
[1641459995839,5.908,3385.4,3385.0,0.00284212]
[1641459996042,5.908,3385.4,3383.6,3.0080663]
[1641459996239,5.908,3385.4,3383.7,17.13]
[1641459996440,5.908,3385.4,3383.7,0.0485776]
[1641459996639,5.908,3385.4,3384.2,1.406093]
[1641459997039,5.908,3385.4,3384.3,0.74555108]
[1641459997239,5.908,3385.4,3384.3,1.48422108]
[1641459997440,4.73791871,3385.3,3384.4,0.00625266]
[1641459997641,5.908,3385.2,3384.4,0.00625266]
[1641459997840,4.73791871,3385.3,3384.4,0.00625266]
[1641459997841,4.22451871,3385.3,3385.1,0.01264493]
[1641459998072,1.0,3387.2,3386.2,1.16960242]
[1641459998073,5.00194399,3387.2,3386.2,1.16960242]
[1641459998272,5.00194399,3387.2,3385.7,0.73831]
[1641459998273,5.9055,3387.0,3385.7,0.73831]
[1641459998473,0.00284211,3386.2,3385.7,0.73831]
[1641459998672,5.9055,3386.1,3385.8,0.3]
[1641459998871,5.90777369,3386.1,3385.9,1.73362671]
[1641459999073,0.00170527,3386.0,3385.9,2.03362671]
[1641459999274,5.90720527,3386.0,3385.9,2.03362671]
[1641459999474,1.27639994,3387.8,3386.4,0.7382924]
[1641459999475,1.0,3387.8,3386.4,0.7382924]
[1641459999676,5.9054,3387.0,3386.5,0.73826]
[1641459999875,5.91108423,3387.0,3386.5,0.73826]
[1641460000075,5.00194399,3388.0,3386.5,0.73826]
[1641460000274,5.9053,3387.0,3386.6,0.00227369]
[1641460001074,5.79671214,3387.0,3386.6,0.00227369]
[1641460001674,5.79671214,3387.0,3386.9,1.32924463]
[1641460001921,5.79671214,3387.0,3386.8,1.4763434]
[1641460002119,5.79671214,3387.0,3386.6,0.00227369]
[1641460002120,0.62871214,3387.0,3386.6,0.00227369]
[1641460002519,0.62871214,3387.0,3386.5,0.00284212]
[1641460002924,0.62871214,3387.0,3386.6,0.7382565]
[1641460003426,5.96263017,3388.1,3386.8,1.16291129]
[1641460003625,0.27639994,3388.1,3386.8,1.16291129]
[1641460003822,5.905,3387.0,3386.9,2.12709693]
[1641460004023,5.905,3387.0,3386.9,1.4761202]
[1641460004223,5.905,3387.0,3386.7,0.00170527]
[1641460004623,5.905,3387.0,3386.5,0.00284212]
[1641460004824,5.905,3387.0,3386.2,0.7383]
[1641460004825,5.905,3387.0,3386.3,0.3]
[1641460005023,5.905,3387.0,3386.5,0.00284212]
[1641460005223,5.905,3387.0,3386.4,0.00341054]
[1641460005879,5.905,3387.0,3386.4,0.74165054]
[1641460006081,5.905,3387.0,3386.4,1.04165054]
[1641460006280,5.905,3387.0,3386.5,0.00284212]
[1641460006980,7.7719316,3387.0,3386.5,0.00284212]
[1641460008179,7.7719316,3387.0,3386.5,0.50284212]
[1641460008381,1.39835568,3386.6,3386.5,0.50284212]
[1641460008579,1.39835568,3386.6,3386.5,0.8]
[1641460008783,7.30335568,3386.6,3386.5,0.8]
[1641460009180,5.905,3386.6,3386.5,0.8]
[1641460009425,5.905,3386.6,3386.5,0.3]
[1641460009627,5.905,3386.6,3386.4,1.11268083]
[1641460009833,5.905,3386.6,3386.1,1.22965799]
[1641460010034,5.905,3386.6,3386.2,0.7383]
[1641460010335,5.905,3386.6,3386.2,0.00454739]
[1641460010735,5.905,3386.6,3385.1,0.01080004]
[1641460010942,5.36165458,3386.5,3385.1,0.01080004]
[1641460011135,0.01280871,3385.9,3384.9,0.01193689]
[1641460011337,0.01280871,3385.9,3383.8,3.6361]
[1641460011338,0.80850871,3385.9,3384.2,0.01591586]
[1641460011540,0.351,3385.8,3384.2,0.01591586]
[1641460011735,1.0,3385.6,3383.9,0.75640113]
[1641460011935,1.851,3385.6,3383.9,0.75640113]
[1641460012135,2.27384344,3384.9,3384.0,0.0170527]
[1641460012337,5.905,3384.8,3384.0,0.0170527]
[1641460012835,5.905,3384.8,3384.2,0.73869]
[1641460013100,5.905,3384.8,3384.3,1.0387211]
[1641460013291,5.905,3384.8,3384.3,1.79279853]
[1641460013492,5.905,3384.8,3384.4,0.01477901]
[1641460013693,5.905,3384.8,3384.4,1.14908953]
[1641460013896,5.905,3384.8,3384.4,0.01477901]
[1641460014095,5.905,3384.8,3384.5,0.01421058]
[1641460014392,5.905,3384.8,3384.1,0.75524428]
[1641460014393,10.905,3384.8,3384.1,0.75524428]
[1641460014594,10.905,3384.8,3384.1,0.01648428]
[1641460014896,1.99289168,3384.7,3384.6,0.00093709]
[1641460015293,1.99289168,3384.7,3384.6,0.01457925]
[1641460015294,7.89789168,3384.7,3384.6,0.01457925]
[1641460015895,5.905,3384.7,3384.6,0.01457925]
[1641460016496,5.905,3384.7,3384.6,0.01295858]
[1641460017137,5.89712859,3384.7,3384.6,0.01295858]
[1641460018137,2.16352892,3385.1,3384.6,0.01295858]
[1641460018537,12.58488432,3384.7,3384.6,0.01295858]
[1641460018737,3.33488432,3384.7,3384.6,0.01295858]
[1641460019139,9.24388432,3384.7,3384.6,0.01295858]
[1641460019836,9.24388432,3384.7,3384.5,9.567e-05]
[1641460021168,3.33488432,3384.6,3384.5,9.567e-05]
[1641460021570,9.24388432,3384.6,3384.5,9.567e-05]
[1641460021969,10.63608483,3384.6,3384.5,0.73880387]
[1641460022170,1.85626735,3384.9,3384.5,1.03880387]
[1641460022571,0.00113685,3384.8,3384.5,1.03880387]
[1641460022770,0.00113685,3384.8,3384.5,0.73880387]
[1641460022969,5.909,3384.7,3384.5,0.73880387]
[1641460023170,5.909,3384.7,3384.5,2.21593387]
[1641460023770,5.909,3384.7,3384.6,0.73857]
[1641460023970,2.6036,3384.7,3384.6,0.73857]
[1641460024173,3.685e-05,3384.8,3384.7,1.15]
[1641460024424,3.5148107,3385.7,3384.7,1.15]
[1641460024425,3.5148107,3385.7,3384.9,17.13]
[1641460024627,4.68623023,3386.2,3386.1,1.09836316]
[1641460024825,6.24830697,3386.7,3386.2,0.73827]
[1641460025226,0.00852635,3386.3,3386.2,2.2148048]
[1641460025426,0.00852635,3386.3,3386.2,2.5148048]
[1641460025825,0.00852635,3386.3,3386.2,2.2148048]
[1641460026026,0.00852635,3386.3,3384.8,2.95328]
[1641460026229,0.01254622,3386.0,3384.8,2.95328]
[1641460026427,0.01254622,3386.0,3384.7,0.25011632]
[1641460026428,0.351,3385.9,3384.7,0.25011632]
[1641460026627,0.351,3385.9,3385.4,0.25011632]
[1641460026628,0.35725265,3385.9,3385.4,0.25011632]
[1641460026826,0.00568423,3385.8,3385.4,0.25011632]
[1641460027225,0.00511581,3385.7,3385.4,0.25011632]
[1641460027629,0.00454738,3385.6,3384.7,0.73865]
[1641460028069,0.00397896,3385.5,3384.9,0.73864]
[1641460028267,0.00397896,3385.5,3384.7,2.77850715]
[1641460028466,0.851,3385.9,3384.7,2.77850715]
[1641460028467,5.91161054,3385.4,3384.7,2.77850715]
[1641460028868,0.00284211,3385.3,3384.7,2.77850715]
[1641460029269,5.91047369,3385.2,3384.7,2.77850715]
[1641460029468,5.91047369,3385.2,3384.9,0.7386174]
[1641460029678,0.00170527,3385.1,3384.9,0.7386174]
[1641460030072,5.90933684,3385.0,3384.9,1.0386174]
[1641460031076,5.90933684,3385.0,3384.9,1.7772274]
[1641460031276,4.85112824,3385.0,3384.9,1.7772274]
[1641460031475,4.5062521,3386.8,3384.9,14.98861]
[1641460031675,4.6625978,3386.4,3385.8,0.73831]
[1641460032126,5.9065,3386.3,3385.9,0.3]
[1641460032531,0.00682108,3386.2,3385.9,0.3]
[1641460032727,0.00682108,3386.2,3385.8,3.14658394]
[1641460032728,0.00682108,3386.2,3385.8,3.62325484]
[1641460033029,0.00625266,3386.1,3385.3,1.47683]
[1641460033229,5.91275266,3386.1,3385.4,1.0]
[1641460033428,0.00568424,3386.0,3385.6,0.73845]
[1641460033638,5.9065,3386.1,3385.6,0.73845]
[1641460033639,1.59508424,3386.1,3385.7,0.7383072]
[1641460033828,1.59508424,3386.1,3385.7,0.00170527]
[1641460034029,1.59508424,3386.1,3385.8,0.00113685]
[1641460034230,1.59508424,3386.1,3385.7,1.47837527]
[1641460034431,1.59508424,3386.1,3385.8,0.00113685]
[1641460035031,1.59508424,3386.1,3385.8,1.47777775]
[1641460035670,1.59508424,3386.1,3385.7,2.21507]
[1641460035671,1.59508424,3386.1,3385.6,2.73881382]
[1641460035871,0.00113685,3386.0,3385.6,0.73845]
[1641460036276,1.59508424,3385.9,3385.6,0.73845]
[1641460036678,1.9346933,3385.7,3385.6,0.73845]
[1641460036877,1.59508424,3385.9,3385.6,0.73845]
[1641460037078,1.59508424,3385.9,3385.6,0.73958685]
[1641460037680,0.011483,3385.8,3385.2,2.00036382]
[1641460037877,1.59508424,3385.7,3385.2,2.00036382]
[1641460038077,6.8,3385.6,3385.1,2.00036382]
[1641460038279,6.7,3385.4,3384.6,4.25049739]
[1641460038479,1.87345874,3385.0,3384.6,4.25049739]
[1641460038681,0.01353174,3385.5,3384.7,0.74207064]
[1641460038682,1.59508424,3384.9,3384.7,0.74207064]
[1641460039079,1.59508424,3384.9,3384.8,0.00284211]
[1641460039318,1.59508424,3384.9,3384.8,0.74151211]
[1641460041026,1.59508424,3384.9,3384.8,1.04151211]
[1641460041821,1.59508424,3384.9,3384.8,5.64151211]
[1641460042026,1.59508424,3384.9,3384.8,6.64151211]
[1641460042226,1.59508424,3384.9,3384.8,2.04151211]
[1641460042628,6.59508424,3384.9,3384.8,2.04151211]
[1641460042829,6.59508424,3384.9,3384.8,2.41790866]
[1641460043074,6.59508424,3384.9,3384.8,1.41790866]
[1641460043272,6.60657029,3384.9,3384.8,2.41790866]
[1641460043670,6.60657029,3384.9,3384.8,1.41790866]
[1641460043871,6.60657029,3384.9,3384.8,2.41790866]
[1641460044375,6.60657029,3384.9,3384.8,1.41790866]
[1641460044578,6.60657029,3384.9,3384.8,2.41790866]
[1641460044777,6.60657029,3384.9,3384.8,1.41790866]
[1641460044981,6.60657029,3384.9,3384.8,2.41790866]
[1641460046581,6.60657029,3384.9,3384.8,1.11790866]
[1641460047230,6.60657029,3384.9,3384.4,0.25011632]
[1641460047630,1.70627033,3384.5,3384.4,0.25011632]
[1641460047828,6.60657029,3384.9,3384.4,0.25011632]
[1641460048128,6.60657029,3384.9,3384.4,0.25239002]
[1641460048328,6.60657029,3384.9,3384.4,0.0022737]
[1641460048830,9.96200683,3384.9,3384.3,0.00284212]
[1641460049033,8.09377029,3384.9,3383.8,1.5222074]
[1641460049231,0.00284212,3384.8,3384.0,1.5222074]
[1641460049432,1.64487848,3384.7,3384.0,1.5222074]
[1641460049632,1.64715217,3384.7,3384.1,0.00113685]
[1641460049834,1.64715217,3384.7,3383.5,4.00038107]
[1641460049835,8.35,3384.3,3383.5,4.00038107]
[1641460050037,0.01284907,3383.6,3383.0,5.00142014]
[1641460050239,1.59508424,3383.5,3383.0,5.00142014]
[1641460050673,1.59508424,3383.5,3382.3,5.00142014]
[1641460050877,1.98116517,3383.2,3382.3,6.05645286]
[1641460051073,1.59508424,3383.5,3382.4,0.0096632]
[1641460051275,1.59508424,3383.5,3382.4,0.3096632]
[1641460051483,1.59508424,3383.5,3382.4,0.0096632]
[1641460051674,1.59508424,3383.5,3382.5,0.00909477]
[1641460052081,1.7659271,3383.1,3382.5,0.00909477]
[1641460052379,1.59508424,3383.0,3382.1,0.01136847]
[1641460052578,1.59508424,3383.0,3382.1,0.75060847]
[1641460052981,1.59508424,3383.0,3382.5,1.22296883]
[1641460053381,1.59508424,3383.0,3382.6,0.00852635]
[1641460053581,1.59508424,3383.0,3382.6,0.74756635]
[1641460053781,1.59508424,3383.0,3382.6,1.48661635]
[1641460053981,1.59508424,3383.0,3382.7,0.00795793]
[1641460054825,1.59508424,3383.0,3382.5,0.73917]
[1641460055225,1.59508424,3383.0,3382.9,1.28152802]
[1641460055628,1.59508424,3383.0,3382.9,1.2883491]
[1641460056127,1.3997798,3383.6,3382.9,1.2883491]
[1641460056327,1.3997798,3383.6,3382.9,3.8047691]
[1641460056328,5.912,3383.0,3382.9,3.8047691]
[1641460056527,1.3997798,3383.6,3383.0,5.85]
[1641460056728,1.3997798,3384.4,3383.9,1.31625747]
[1641460056927,1.3997798,3384.4,3383.0,5.85]
[1641460056928,1.3997798,3384.4,3383.1,1.00568423]
[1641460057128,0.00113685,3384.3,3383.8,0.73878]
[1641460057427,5.91173685,3384.3,3384.0,0.7387585]
[1641460057629,5.91173685,3384.3,3383.9,2.21749135]
[1641460057831,5.91173685,3384.3,3384.0,1.15768506]
[1641460058091,4.5062521,3384.6,3384.1,13.96250688]
[1641460058276,4.66123031,3385.7,3385.5,1.36765791]
[1641460058478,2.4022,3387.0,3385.5,0.7458]
[1641460058479,8.85554103,3386.0,3385.5,0.7458]
[1641460058681,8.85554103,3386.0,3385.6,2.2151352]
[1641460059180,0.01023162,3386.1,3385.6,2.9535152]
[1641460059181,5.907,3385.9,3385.6,2.9535152]
[1641460059379,5.907,3385.9,3385.6,1.4767452]
[1641460059580,0.00852635,3385.8,3385.6,1.4767452]
[1641460059781,5.907,3385.7,3385.6,1.4767452]
[1641460059981,5.91495793,3385.7,3385.6,1.4767452]
[1641460060182,1.88577892,3386.1,3385.6,1.7767452]
[1641460060383,1.88577892,3386.1,3385.9,1.77875859]
[1641460060686,0.00170527,3386.0,3385.9,1.04052859]
[1641460060883,0.00170527,3386.0,3385.7,1.0]
[1641460061082,0.00170527,3386.0,3385.6,1.8277452]
[1641460061083,0.00170527,3386.0,3385.9,0.3]
[1641460061283,1.88577892,3386.1,3385.9,1.4764331]
[1641460061495,1.88577892,3386.1,3385.6,0.7385042]
[1641460061683,1.88577892,3386.1,3384.7,4.56645037]
[1641460061684,8.0011539,3386.0,3385.1,0.66475]
[1641460062122,0.00113684,3385.9,3385.2,0.00284212]
[1641460062324,5.9069,3385.8,3385.2,0.00284212]
[1641460063525,5.9069,3385.8,3385.5,0.3]
[1641460063725,5.9069,3385.8,3385.6,0.7384383]
[1641460064125,5.9069,3385.8,3385.7,1.23438985]
[1641460064526,0.879,3385.8,3385.7,1.23438985]
[1641460065571,0.879,3385.8,3385.6,2.4030283]
[1641460065771,0.879,3385.8,3385.6,1.4030283]
[1641460066677,0.879,3385.8,3385.7,1.40527911]
[1641460067175,0.879,3385.8,3385.7,1.70527911]
[1641460067576,0.879,3385.8,3385.7,3.80527773]
[1641460067777,0.879,3385.8,3385.7,5.10527773]
[1641460068102,4.21256449,3385.8,3385.7,1.40527911]
[1641460068977,4.21256449,3385.8,3385.7,3.48965204]
[1641460069177,4.21256449,3385.8,3385.7,1.40527911]
[1641460069632,4.21256449,3385.8,3385.7,2.70527911]
[1641460069829,4.21256449,3385.8,3385.7,3.00527911]
[1641460070029,4.21256449,3385.8,3385.7,1.70527911]
[1641460070430,4.21256449,3385.8,3385.6,19.2713983]
[1641460070629,4.21256449,3385.8,3385.6,2.1413983]
[1641460071831,3.33356449,3385.7,3385.6,2.7030283]
[1641460072229,3.33356449,3385.7,3385.6,3.4413983]
[1641460072230,4.21256449,3385.7,3385.6,3.4413983]
[1641460072429,4.21256449,3385.7,3385.6,2.7030283]
[1641460073968,4.21256449,3385.7,3385.6,2.6975783]
[1641460074169,4.21256449,3385.7,3385.6,2.5783083]
[1641460074370,4.21256449,3385.7,3385.6,1.2771583]
[1641460074573,4.21256449,3385.7,3385.5,1.4768765]
[1641460074774,4.21256449,3385.7,3385.2,0.00284212]
[1641460075375,2.21158954,3385.6,3385.2,0.00284212]
[1641460075574,2.21158954,3385.6,3384.7,2.94290723]
[1641460075774,0.879,3385.5,3384.7,3.60770723]
[1641460075974,0.88241054,3385.5,3384.7,0.48506]
[1641460076176,0.00284212,3385.4,3384.7,0.48506]
[1641460076575,2.12478456,3384.8,3384.7,0.48506]
[1641460076822,3.00378456,3384.8,3384.7,0.48506]
[1641460077024,3.00378456,3384.8,3384.7,0.48619685]
[1641460077425,3.00378456,3384.8,3384.7,0.00113685]
[1641460077626,2.95378456,3384.8,3384.7,0.00113685]
[1641460077826,7.28734905,3384.8,3384.3,0.00341054]
[1641460078028,7.28734905,3384.8,3384.0,0.00511581]
[1641460078029,6.28734905,3384.8,3384.0,0.00511581]
[1641460078225,6.28734905,3384.8,3383.8,0.00625266]
[1641460078425,6.28734905,3384.8,3383.7,0.00682108]
[1641460078831,6.28734905,3384.8,3384.0,0.66497]
[1641460079029,1.42187107,3384.4,3384.0,0.66497]
[1641460079329,0.879,3384.3,3384.1,0.00454739]
[1641460079528,2.01961439,3384.2,3384.1,0.00454739]
[1641460079731,0.879,3384.2,3383.9,0.00568424]
[1641460079929,1.42187107,3384.4,3384.0,8.37382999]
[1641460080131,1.42187107,3384.4,3383.9,2.00005424]
[1641460080429,3.33356449,3384.3,3384.0,0.00511581]
[1641460080879,3.33356449,3384.3,3383.7,0.66504]
[1641460081076,3.33356449,3384.3,3383.7,0.67186108]
[1641460081381,5.9102,3384.2,3383.8,0.00625266]
[1641460081978,5.9102,3384.2,3383.9,0.7388641]
[1641460082378,3.33356449,3384.1,3384.0,0.00511581]
[1641460082579,9.24376449,3384.1,3384.0,0.00511581]
[1641460083577,9.24376449,3384.1,3384.0,1.10965297]
[1641460083778,1.42187107,3384.7,3384.0,1.10965297]
[1641460083981,1.42187107,3384.7,3384.6,1.19218428]
[1641460084178,1.88577892,3384.9,3384.6,0.73848]
[1641460084179,1.41424743,3384.9,3384.6,0.73848]
[1641460084425,1.41424743,3384.9,3384.6,0.74018527]
[1641460084629,0.26740473,3384.3,3383.5,1.39078079]
[1641460084832,0.26740473,3384.3,3383.5,1.0]
[1641460085029,5.9089,3384.2,3383.8,2.7331971]
[1641460085228,5.9089,3384.2,3383.9,1.4275427]
[1641460085430,5.9089,3384.2,3383.9,1.43152167]
[1641460085628,5.9089,3384.2,3384.0,0.6483918]
[1641460085830,5.9089,3384.2,3384.0,3.64977262]
[1641460086029,5.9089,3384.2,3384.0,0.1410042]
[1641460086030,5.92134854,3384.2,3384.0,0.1410042]
[1641460086633,5.92134854,3384.2,3383.7,0.66502]
[1641460087030,1.65362355,3383.9,3383.8,0.00170527]
[1641460087431,7.56252355,3383.9,3383.8,0.00170527]
[1641460088282,7.56252355,3383.9,3383.8,0.00255387]
[1641460089682,7.5740128,3383.9,3383.8,0.00255387]
[1641460092736,5.92038925,3383.9,3383.8,0.00255387]
[1641460093736,5.92038925,3383.9,3383.8,1.00255387]
[1641460094337,5.92038925,3383.9,3383.8,1.00118637]
[1641460094737,0.26740473,3384.3,3383.9,1.31445363]
[1641460094938,0.26740473,3384.3,3384.1,1.47727]
[1641460095140,0.00108732,3384.2,3384.1,2.47727]
[1641460096185,5.91098732,3384.2,3384.1,2.47727]
[1641460096386,5.10518732,3384.2,3384.1,2.47727]
[1641460096785,5.05013084,3384.2,3384.1,2.47727]
[1641460097586,1.42401218,3385.2,3384.2,0.39846916]
[1641460097793,2.84802437,3385.7,3385.1,1.23148811]
[1641460097987,2.84802437,3385.7,3385.3,0.7383]
[1641460098187,0.0015694,3385.6,3385.4,17.13]
[1641460098392,3.77586514,3386.0,3385.7,1.11270004]
[1641460098591,3.77586514,3386.0,3385.7,18.24270004]
[1641460098791,1.64003191,3386.4,3385.7,18.24270004]
[1641460098792,5.9069,3385.9,3385.7,19.24270004]
[1641460099091,0.00163,3385.9,3385.7,2.11270004]
[1641460099335,0.0119369,3386.3,3385.8,5.1]
[1641460099536,0.0119369,3386.3,3385.7,19.71901994]
[1641460099742,4.17586514,3387.0,3386.0,0.73823]
[1641460099743,5.91796847,3386.2,3386.0,0.73823]
[1641460100141,0.01080005,3386.1,3386.0,1.03823]
[1641460100341,0.01080005,3386.1,3386.0,1.77645]
[1641460100543,5.91740005,3386.1,3386.0,1.77645]
[1641460100741,5.91740005,3386.1,3386.0,2.77645]
[1641460100943,5.91740005,3386.1,3386.0,1.03822]
[1641460101344,5.91740005,3386.1,3386.0,2.03822]
[1641460102945,7.82014109,3386.1,3386.0,2.03822]
[1641460104190,9.5315972,3386.1,3386.0,2.64808624]
[1641460104391,9.5315972,3386.1,3385.0,4.00201313]
[1641460104795,0.01023163,3386.0,3385.0,4.00201313]
[1641460105194,5.9162632,3385.9,3385.0,4.00201313]
[1641460105596,1.82685976,3385.4,3385.0,4.00201313]
[1641460105796,5.9066,3385.3,3384.6,3.50292538]
[1641460105996,5.9066,3385.3,3384.5,1.36294391]
[1641460105997,5.91285266,3385.3,3384.5,1.36294391]
[1641460106198,0.00568424,3385.2,3384.5,1.36294391]
[1641460106397,5.9066,3385.1,3384.5,1.36294391]
[1641460106598,5.9066,3385.1,3384.7,0.59074]
[1641460106599,5.91171582,3385.1,3384.7,0.59074]
[1641460106840,0.00454739,3385.0,3384.7,0.59074]
[1641460107043,0.00454739,3385.0,3384.7,20.7213224]
[1641460107241,5.91057897,3384.9,3384.7,20.7213224]
[1641460107441,5.91057897,3384.9,3384.8,1.0]
[1641460107646,5.9066,3384.9,3384.8,1.0]
[1641460107843,5.9066,3384.9,3384.8,1.99694747]
[1641460108242,5.9066,3384.9,3384.8,0.99694747]
[1641460108843,5.9066,3384.9,3384.6,3.0005824]
[1641460109042,1.79792258,3384.8,3384.6,3.0005824]
[1641460109243,0.86487754,3385.9,3384.7,14.95]
[1641460109443,10.24748147,3387.1,3385.8,1.22352573]
[1641460109444,5.44036497,3387.1,3385.8,1.22352573]
[1641460109646,5.44036497,3387.1,3385.3,0.0120819]
[1641460109647,3.77586514,3386.0,3385.9,0.3]
[1641460110048,3.77586514,3386.0,3385.4,0.351]
[1641460110351,2.21080016,3385.8,3385.4,0.351]
[1641460110773,0.00511581,3385.7,3385.4,0.351]
[1641460110975,0.00511581,3385.7,3385.6,1.47649]
[1641460111174,2.21080016,3385.8,3385.2,1.18121]
[1641460111374,2.21080016,3385.8,3385.1,4.00201313]
[1641460111579,0.01217886,3386.2,3385.1,4.00201313]
[1641460111580,0.00454738,3385.6,3385.1,4.00201313]
[1641460111881,0.00397896,3385.5,3385.3,0.99694747]
[1641460112081,5.9077,3385.4,3384.5,0.73848]
[1641460112279,5.91111054,3385.4,3384.5,0.68848]
[1641460112479,0.00284211,3385.3,3384.6,1.33358204]
[1641460112679,5.9077,3385.2,3384.6,1.33358204]
[1641460112882,1.94981045,3385.0,3384.6,1.33358204]
[1641460113079,5.9077,3384.9,3384.6,1.33358204]
[1641460113485,5.9077,3384.9,3384.6,0.00113685]
[1641460113682,5.9077,3384.9,3384.7,0.73843]
[1641460113879,5.9077,3384.9,3384.7,1.08943]
[1641460114530,5.9077,3384.9,3384.7,2.08943]
[1641460114734,2.10078283,3384.8,3384.7,1.754]
[1641460114935,2.10078283,3384.8,3384.7,2.754]
[1641460115134,8.00848283,3384.8,3384.7,2.754]
[1641460115338,5.9077,3384.8,3384.7,2.01557]
[1641460116536,5.8577,3384.8,3384.7,2.01557]
[1641460116936,5.8577,3384.8,3384.7,2.75397]
[1641460117638,5.8577,3384.8,3384.7,1.75397]
[1641460117837,5.8577,3384.8,3384.7,2.75397]
[1641460120084,5.8577,3384.8,3384.7,1.75397]
[1641460120281,5.8577,3384.8,3384.7,3.05397]
[1641460121083,5.8577,3384.8,3384.7,20.18397]
[1641460121923,5.8577,3384.8,3384.7,2.75397]
[1641460122120,5.8577,3384.8,3384.7,1.75397]
[1641460122320,5.8577,3384.8,3384.7,19.88397]
[1641460122524,5.8577,3384.8,3384.7,22.65304993]
[1641460122721,5.8577,3384.8,3384.7,5.52304993]
[1641460122922,5.8577,3384.8,3384.7,5.82304993]
[1641460123123,5.8577,3384.8,3384.7,29.44561305]
[1641460123622,5.8577,3384.8,3384.7,25.93669942]
[1641460124625,5.8577,3384.8,3384.7,27.41469942]
[1641460124829,5.8577,3384.8,3384.7,29.05882412]
[1641460125226,5.8077,3384.8,3384.7,29.05882412]
[1641460125587,5.8077,3384.8,3384.7,26.07517463]
[1641460126184,0.00170527,3385.1,3384.9,1.478]
[1641460126385,0.00170527,3385.1,3385.0,21.84461147]
[1641460126585,1.44533353,3386.1,3385.0,24.15119984]
[1641460126786,1.44533353,3386.1,3385.7,1.16450556]
[1641460126986,0.00682108,3386.0,3385.7,1.81550556]
[1641460127185,5.9069,3385.9,3385.8,17.13]
[1641460127386,5.91315265,3385.9,3385.8,17.13]
[1641460127588,5.91315265,3385.9,3385.8,18.86816]
[1641460128186,7.52270694,3385.9,3385.8,22.98136463]
[1641460128989,5.91315265,3385.9,3385.8,20.8632847]
[1641460129422,5.91315265,3385.9,3385.8,3.7332847]
[1641460129629,5.91315265,3385.9,3385.8,2.9951247]
[1641460130028,5.91315265,3385.9,3385.8,1.6441247]
[1641460131028,7.41144073,3385.9,3385.3,1.34969016]
[1641460131229,7.41144073,3385.9,3384.9,0.73842]
[1641460131426,0.00568423,3385.8,3384.9,0.73842]
[1641460131830,5.81201581,3385.7,3385.4,1.6441247]
[1641460132229,0.00454738,3385.6,3385.4,1.6441247]
[1641460132630,1.63177452,3386.0,3385.2,1.6441247]
[1641460132631,5.81087896,3385.5,3385.2,1.6441247]
[1641460132832,5.81087896,3385.5,3385.4,0.3]
[1641460133071,5.8069,3385.5,3385.2,2.9441247]